Cogmind - Beta 13 @@@ ROGUE MODE // 2024.04.01 @ 16:56:42 Player: Namu Result: Destroyed by 75-88O(R) with Subdweller Beam Cannon Performance ------------- Evolutions (0) 0 Regions Visited (3) 600 Robots Destroyed (25) 125 Value Destroyed (743) 743 Prototype IDs (0) 0 Alien Tech Used (0) 0 Bonus (-141) -141 TOTAL SCORE: 1327 Bonus ------- Friendly Fire -141 Cogmind --------- Core Integrity 0/250 Matter 238/300 Energy 248/250 System Corruption 1% Temperature Cool (9) Movement Walking (120) Location -10/Subcaves Parts ------- > --- POWER (1) -------- Ion Engine > --- PROPULSION (2) --- Carbon-fiber Leg Subdweller Monowheel > --- UTILITY (2) ------ (None) > --- WEAPON (2) ------- (None) > --- INVENTORY (5) ---- Improved Heat Sink Mining Laser Scrap Shield Fragment (49) Peak State ------------ > --- POWER ------------ Ion Engine > --- PROPULSION ------- Carbon-fiber Leg Subdweller Monowheel > --- UTILITY ---------- Scrap Shield > --- WEAPON ----------- Rocket Launcher Rocket Launcher > --- INVENTORY -------- Subdweller Power Source Improved Heat Sink Mining Laser Scrap Shield Fragment [Rating: 14] Favorites ----------- Power Ion Engine Engine Ion Engine Propulsion Flight Unit Treads Light Treads Leg Aluminum Leg Wheel Subdweller Monowheel Flight Unit Flight Unit Utility Small Storage Unit Device Improved Heat Sink Storage Small Storage Unit Processor Signal Interpreter Protection Power Shielding Weapon Rocket Launcher Energy Cannon Beam Cannon Ballistic Gun Light Assault Rifle Launcher Rocket Launcher Special Weapon Mining Laser Build | -11 -10 -10 -10 ------- Run | Yrd Mat Min Sub Slots Evolved . | . . . . Power . | . . . . Propulsion . | . . . . Utility . | . . . . Weapon . | . . . . Parts Attached 43 | 7 29 2 5 Power 6 | 2 4 . . Engine 6 | 2 4 . . Core . | . . . . Reactor . | . . . . Propulsion 16 | 2 10 . 4 Treads 3 | 2 1 . . Leg 7 | . 5 . 2 Wheel 2 | . . . 2 Hover . | . . . . Flight 4 | . 4 . . Utility 10 | 1 8 . 1 Device 3 | . 3 . . Storage 3 | 1 2 . . Processor 1 | . 1 . . Hackware . | . . . . Protection 3 | . 2 . 1 Artifact . | . . . . Weapon 11 | 2 7 2 . Energy Gun . | . . . . Energy Cannon 1 | . 1 . . Ballistic Gun 4 | 2 2 . . Ballistic Cannon . | . . . . Launcher 5 | . 4 1 . Special Weapon 1 | . . 1 . Impact Weapon . | . . . . Slashing Weapon . | . . . . Piercing Weapon . | . . . . Special Melee Weapon . | . . . . Unidentified Prototypes . | . . . . Parts Lost 10 | . 6 . 4 Power 1 | . 1 . . Propulsion 5 | . 4 . 1 Utility 1 | . . . 1 Weapon 3 | . 1 . 2 Highest Loss Streak 4 | . 3 . 4 To Critical Strikes . | . . . . Average Slot Usage (%) 90 | . 91 100 80 Engine 13 | . 13 14 14 Treads 4 | . 6 . . Leg 4 | . 5 . 1 Wheel 1 | . . . 8 Flight 14 | . 12 28 16 Device 5 | . 3 28 . Storage 10 | . 14 . . Processor 1 | . 2 . . Protection 6 | . 5 . 12 Energy Cannon 2 | . 3 . . Ballistic Gun 9 | . 13 . . Launcher 14 | . 10 21 26 Naked Turns . | . . . . Heaviest Build 31 | 10 23 14 31 Greatest Support 40 | 40 40 14 40 Greatest Overweight (x) 4 | . 4 . 3 Average Overweight (x) . | . . . 1 Largest Inventory Capacity 15 | 8 15 5 5 Average Capacity 6 | 6 7 5 5 Most Carried 8 | 3 8 3 5 Average Carried 3 | . 3 2 3 Final Capacity 8 | 8 5 5 5 Final Carried 3 | . 2 3 3 Class Distribution -------------------- 95% | Mutant 4% | Subdweller-Mutant Dominant Class ---------------- Mutant | -10/Materials Mutant | -10/Mines Mutant | -10/Subcaves Resources | -11 -10 -10 -10 ----------- Run | Yrd Mat Min Sub Matter Collected 801 | 228 491 . 82 Remotely . | . . . . Salvage Created 732 | . 419 . 313 Parts 62 | . 28 . 34 Haulers Intercepted . | . . . . Recyclers Shooed . | . . . . Parts Field Recycled . | . . . . Retrieved Matter . | . . . . Parts Self-Destructed 6 | . . . 6 Prevented . | . . . . Kills | -11 -10 -10 -10 ------- Run | Yrd Mat Min Sub Combat Hostiles Destroyed 21 | . 12 . 9 Guns 7 | . 7 . . Cannons 2 | . 2 . . AOE 12 | . 3 . 9 Classes Destroyed 6 | . 4 . 2 Operator 1 | . 1 . . Watcher 2 | . 2 . . Swarmer 4 | . 4 . . Grunt 8 | . 8 . . Subdweller 9 | . . . 9 Guerrilla 1 | . . . 1 Best Kill Streak 9 | . 3 . 9 Combat Bots Only 9 | . 3 . 9 Max Kills in Single Turn 5 | . 1 . 5 Gunslinging . | . . . . Exploded 5 | . 1 . 5 Melee . | . . . . Uniques/NPCs Destroyed . | . . . . Combat | -11 -10 -10 -10 -------- Run | Yrd Mat Min Sub Hostile Shots Fired 174 | . 149 . 25 Missed 51 | . 44 . 7 Damage Taken 1664 | . 1176 . 488 Core 276 | . 195 . 81 Absorbed by Shields . | . . . . Redirected to Shielding 20 | . 20 . . Core Remaining (%) 100 | 100 . . . Volleys Fired 72 | . 59 9 4 Largest 2 | . 2 1 2 Hottest 100 | . 80 100 66 Shots Fired 135 | . 118 9 8 Gun 90 | . 90 . . Cannon 20 | . 20 . . Launcher 16 | . 8 . 8 Special 9 | . . 9 . Kinetic 90 | . 90 . . Thermal 29 | . 20 9 . Explosive 16 | . 8 . 8 Electromagnetic . | . . . . Robot Hit Streak 7 | . 7 . 2 Robot Miss Streak 5 | . 5 . 1 Penetration Max . | . . . . Secondary Targets 2 | . 2 . . Max Gunslinging Chain 1 | . 1 . . Shots Hit Robots 63 | . 59 . 4 Core Hits 45 | . 30 . 15 Critical Kills . | . . . . Critical Parts Destroyed 1 | . 1 . . Critical Strikes 1 | . 1 . . Destroy 1 | . 1 . . Melee Attacks . | . . . . Impact . | . . . . Slashing . | . . . . Piercing . | . . . . Sneak Attacks . | . . . . Combat Hostiles . | . . . . Follow-up Attacks . | . . . . Damage Inflicted 1716 | . 833 . 883 Guns 391 | . 391 . . Cannons 195 | . 195 . . Explosions 1130 | . 247 . 883 Melee . | . . . . Ramming . | . . . . Kinetic 391 | . 391 . . Thermal 195 | . 195 . . Explosive 1130 | . 247 . 883 Electromagnetic . | . . . . Impact . | . . . . Slashing . | . . . . Piercing . | . . . . Highest Corruption 1 | . 1 1 1 Average Corruption 1 | . 1 1 1 Corruption Purged . | . . . . Corruption Blocked . | . . . . Effects 13 | . 9 . 4 Message Errors 3 | . 2 . 1 Matter Fused 2 | . 1 . 1 Heat Flow Errors 5 | . 4 . 1 Energy Discharges 3 | . 2 . 1 Overload Shots . | . . . . Overflow Damage 15 | . 15 . . Projectiles 15 | . 15 . . Explosions . | . . . . Melee . | . . . . Knockbacks . | . . . . Impact . | . . . . Kinetic . | . . . . Secondary . | . . . . Self-Inflicted Damage 115 | . 53 . 62 Shots 5 | . 2 . 3 Rammed . | . . . . Targets Rammed . | . . . . Kicked . | . . . . Crushed . | . . . . Highest Temperature 264 | . 264 . 219 Average Temperature 83 | . 82 . 119 Received Heat Transfer 486 | . 405 . 81 Effects 2 | . 2 . . Interference 2 | . 2 . . Siege Activations . | . . . . Robots Corrupted . | . . . . Combat Hostiles . | . . . . Parts Fried . | . . . . Impact Corruptions . | . . . . Robots Melted . | . . . . Combat Hostiles . | . . . . Parts Melted . | . . . . Heat Transferred 407 | . 407 . . Parts Sabotaged . | . . . . Parts Stolen . | . . . . Parts Stripped . | . . . . Power Chain Reactions . | . . . . Alert | -11 -10 -10 -10 ------- Run | Yrd Mat Min Sub Peak Influence 149 | . 149 20 . Initial 18 | . . 18 . Average 49 | . 56 18 . Maximum Alert Level . | . . . . Low Security (%) 100 | 100 100 100 . Level 1 . | . . . . Level 2 . | . . . . Level 3 . | . . . . Level 4 . | . . . . Level 5 . | . . . . High Security . | . . . . Max Security . | . . . . Squads Dispatched 4 | . 4 . . Investigation 2 | . 2 . . Extermination . | . . . . Reinforcement 2 | . 2 . . Assault . | . . . . Garrison . | . . . . Intercept . | . . . . Searches Triggered . | . . . . Construction Impeded . | . . . . Haulers Reinforced . | . . . . Active Scanning Responses . | . . . . Cargo Convoy Interrupts . | . . . . Stealth | -11 -10 -10 -10 --------- Run | Yrd Mat Min Sub Distress Signals 3 | . 3 . . Communications Jammed . | . . . . Distress Signals . | . . . . Times Spotted 37 | . 22 . 15 Peak Tracking Total 10 | . 4 . 10 Tactical Retreats 1 | . 1 . . Traps | -11 -10 -10 -10 ------- Run | Yrd Mat Min Sub Traps Triggered 7 | . 7 . . Indirectly . | . . . . Trap Hack Attempts . | . . . . Triggered . | . . . . Disarmed . | . . . . Reprogrammed . | . . . . Reused . | . . . . Traps Extracted . | . . . . Installed . | . . . . Triggered . | . . . . Machines | -11 -10 -10 -10 ---------- Run | Yrd Mat Min Sub Machines Disabled 1 | . 1 . . Max in Single Turn 1 | . 1 . . Machines Repaired . | . . . . Machines Dismantled . | . . . . Machines Sabotaged . | . . . . Overloaded Fab Kills . | . . . . Hacking | -11 -10 -10 -10 --------- Run | Yrd Mat Min Sub Machines Accessed 8 | . 8 . . Terminals 5 | . 5 . . Fabricators . | . . . . Repair Stations 1 | . 1 . . Recycling Units 2 | . 2 . . Scanalyzers . | . . . . Garrison Access . | . . . . Total Hacks 23 | . 23 . . Successful 12 | . 12 . . Failed 11 | . 11 . . Catastrophic 3 | . 3 . . Database Lockouts . | . . . . Manual 2 | . 2 . . Terminals 15 | . 15 . . Fabricators . | . . . . Repair Stations 2 | . 2 . . Recycling Units 6 | . 6 . . Scanalyzers . | . . . . Garrison Access . | . . . . Terminal Hacks 8 | . 8 . . Record 1 | . 1 . . Alert Level 1 | . 1 . . Unreport Threat 2 | . 2 . . Transport Status 1 | . 1 . . Recall Investigation 1 | . 1 . . Recall Reinforcements 1 | . 1 . . Zone Layout 1 | . 1 . . Fabricator Hacks . | . . . . Repair Station Hacks . | . . . . Recycling Unit Hacks 4 | . 4 . . Recycle Component 1 | . 1 . . Process 2 | . 2 . . Report Inventory 1 | . 1 . . Scanalyzer . | . . . . Garrison Access Hacks . | . . . . Unauthorized Hacks . | . . . . Terminals . | . . . . Fabricators . | . . . . Repair Stations . | . . . . Recycling Units . | . . . . Scanalyzers . | . . . . Garrison Access . | . . . . Data Cores Recovered . | . . . . Used . | . . . . Hacking Detections 7 | . 7 . . Full Trace Events 7 | . 7 . . Feedback Events . | . . . . Feedback Blocked . | . . . . Robot Schematics Acquired . | . . . . Robots Built . | . . . . Authchips . | . . . . Time . | . . . . Total Robot Build Rating . | . . . . Part Schematics Acquired . | . . . . Parts Built . | . . . . Authchips . | . . . . Time . | . . . . Total Part Build Rating . | . . . . Parts Repaired . | . . . . Time . | . . . . Parts Recycled 1 | . 1 . . Recycled Matter 111 | . 111 . . Retrieved Matter . | . . . . Retrieved Components . | . . . . Parts Scanalyzed . | . . . . Part Schematics Acquired . | . . . . Parts Damaged . | . . . . Bothacking | -11 -10 -10 -10 ------------ Run | Yrd Mat Min Sub Used RIF Installer . | . . . . Robots Hacked . | . . . . Non-combat . | . . . . Combat . | . . . . Robot Hacks Applied . | . . . . Relay Couplers Released . | . . . . Fabnet Peak Effective % . | . . . . Robots Rewired . | . . . . Allies Hacked . | . . . . Hacks Repelled . | . . . . Allies | -11 -10 -10 -10 -------- Run | Yrd Mat Min Sub Total Allies 1 | . . 1 . Largest Group 1 | . . 1 1 Highest-Rated Group 31 | . . 31 31 Highest-Rated Ally 31 | . . 31 31 Total Orders . | . . . . Ally Attacks 4 | . . . 4 Total Damage 82 | . . . 82 Kills . | . . . . Allies Corrupted . | . . . . Allies Melted . | . . . . Intel | -11 -10 -10 -10 ------- Run | Yrd Mat Min Sub Robot Analysis Total . | . . . . Derelict Logs Recovered 1 | . . 1 . Drone Launches . | . . . . Drone Recoveries . | . . . . Exploration | -11 -10 -10 -10 ------------- Run | Yrd Mat Min Sub Turns Passed 2692 | 118 1923 250 401 Spaces Moved 1992 | 70 1465 252 205 Core 48 | 7 41 . . Treads 325 | 63 262 . . Legs 229 | . 221 . 8 Wheels 111 | . . . 111 Hover . | . . . . Flight 1279 | . 941 252 86 Fastest Speed 37 | 50 37 37 37 Average Speed 110 | 149 111 37 173 Slowest Speed 280 | 160 280 37 277 Overloaded Moves . | . . . . Propulsion Burnouts . | . . . . Robots Hopped 15 | . 1 14 . Cave-ins Triggered . | . . . . Exploration Rate (%) 37 | 4 93 46 6 Regions Visited 3 Branch Regions 2 Pre-discovered Areas 1 | . . 1 . Known Exits Taken . | . . . . Unknown Exits Taken 3 | 1 1 1 . Scrap Searched . | . . . . Spaces Dug 4 | . . 4 . Terrain Destroyed 139 | . 75 4 60 Melee . | . . . . Projectile 4 | . . 4 . AOE 135 | . 75 . 60 Terrain Rammed . | . . . . Walls Destroyed . | . . . . Machines Disabled . | . . . . Actions | -11 -10 -10 -10 --------- Run | Yrd Mat Min Sub Total 2349 | 84 1654 366 245 Wait 181 | . 48 117 16 Move 1962 | 69 1462 226 205 Hop 12 | . 1 11 . Pick Up 51 | 7 36 1 7 Fast Attach . | . . . . Attach 33 | 6 23 . 4 Detach 4 | . 3 . 1 Swap 10 | 1 6 2 1 Drop 24 | 1 16 . 7 Fire 72 | . 59 9 4 Melee . | . . . . Ram . | . . . . Kick . | . . . . Crush . | . . . . Escape Stasis . | . . . . Rewire . | . . . . Trap . | . . . . Miscellaneous . | . . . . Route ------- -11/Scrapyard -10/Materials (discovered 4 exits: [*Mat x3] / [*Min]) -10/Mines (discovered 3 exits: [*Mat x2] / [*Sub]) -10/Subcaves History --------- Turn | Location | Event 3 | -11/Scrapyard | Discovered new exit (range 15) 119 | -11/Scrapyard | Entered Materials 309 | -10/Materials | Build established: Mutant 541 | -10/Materials | Discovered new exit (range 6) 606 | -10/Materials | Core integrity fell below 50% 640 | -10/Materials | Lost 3 parts (2n1w) 948 | -10/Materials | Discovered new exit (range 8) 1198 | -10/Materials | Discovered new exit (range 6) 1896 | -10/Materials | Discovered new exit (range 9) 2042 | -10/Materials | Entered Mines 2050 | -10/Mines | Learned location of Zion (-7) 2062 | -10/Mines | Discovered new exit (range 5) 2074 | -10/Mines | Discovered new exit (range 4) 2086 | -10/Mines | Received a Mining Laser from a helpful Derelict 2213 | -10/Mines | Discovered new exit (range 3) 2292 | -10/Mines | Entered Subcaves 2292 | -10/Subcaves | Accompanied by 1 ally 2649 | -10/Subcaves | Ambushed by swarm of Subdwellers 2651 | -10/Subcaves | Ambushed by Subdwellers from Twisted Machinery 2651 | -10/Subcaves | Ambushed by Subdwellers from Twisted Machinery 2651 | -10/Subcaves | Ambushed by Subdwellers from Twisted Machinery 2651 | -10/Subcaves | Ambushed by Subdwellers from Twisted Machinery 2651 | -10/Subcaves | Ambushed by Subdwellers from Twisted Machinery 2678 | -10/Subcaves | Core integrity fell below 20% 2693 | -10/Subcaves | Destroyed by 75-88O(R) with Subdweller Beam Cannon Last Messages --------------- to Scrap Shield. 02663_ X3-9Q7(R) affixes Scrap Shield Fragment to Scrap Shield. 02663_ Sub. Monowheel destroyed. 02664_ The unstable cave ceiling collapses. 02664_ Sub. Power Source crushed. 02664_ 4H-PJS(R) affixes Scrap Shield Fragment to Scrap Shield. 02667_ 6E-K8W(R) affixes Scrap Shield Fragment to Scrap Shield. 02670_ System corrupted: Matter fused (-6). 02672_ The unstable cave ceiling collapses. 02672_ Scrap Shield Fragment crushed. 02674_ X3-9Q7(R) destroyed. 02674_ Rocket Launcher destroyed. 02674_ Destroyed Rocket Launcher. 02674_ 6E-K8W(R) destroyed. 02678_ 4H-PJS(R) affixes Scrap Shield Fragment to Scrap Shield. 02678_ Rocket Launcher destroyed. Map ----- +----------------------------------------------------+ | ????????????????????????????????????????????????# | | ????????????????????????????????????????????????## | | ????????????????????????????????????????????????## | | ????????????????????????????????????????????????# | | ????????????????????????????????????????????????# | | ????????????????????????????????????????????????# | | ????????????????????????????????????????????????# | | ????????????????????????????????????????????????## | | ????????????????????????????????????????????????#& | | ????????????????????????????????????????????????## | | ?????????????????????????????????????????????????# | | ?????????????????????????????????????????????????# | | ????????????????????????????????????????????????## | | ?????????????????????????????????????????????? | | ?????????????????????????????????????????????? | | ???????????????????????????????????????????### | | ??????????????????????????????????????????## | | ?????????????????????????????????????????## | | ??????????????????????????##????????????## | | ??????????????????????##### ##???######## | | ?????????????????#???## #?## | | ?????????????????? ## ## ## [!=& | | ???????????????????? # * = &! | | ??????????????????????# ##?# ## %= [[&*!## | | ???????????????????????# #### ## ### | &!!%%!! # | | ???????????????????????# @ R #?# %%=% & | | ???????????????????????## #### ##?## **[!! # | | ????????????????????????## ##??####???## &= ! # | | ?????????????????????????####???????????########## | | ?????????????????????????????????????????????????? | | ?????????????????????????????????????????????????? | | ?????????????????????????????????????????????????? | | ?????????????????????????????????????????????????? | | ?????????????????????????????????????????????????? | | ?????????????????????????????????????????????????? | | ?????????????????????????????????????????????????? | | ?????????????????????????????????????????????????? | | ?????????????????????????????????????????????????? | | ?????????????????????????????????????????????????? | | ?????????????????????????????????????????????????? | | ?????????????????????????????????????????????????? | | ?????????????????????????????????????????????????? | | ?????????????????????????????????????????????????? | | | | | | | | | | | | | | | +----------------------------------------------------+ Best States ------------- Heat Dissipation 39 Energy Generation 10 Energy Capacity 250 Matter Stores 300 Matter Capacity 450 Sight Range 16 Terrain Scan Density 10 Additional Mass Support 6 Armor Coverage 800 Power Shielding 33 Evasion (%) 62 Recoil Reduction 2 Item Schematics ----------------- None Robot Schematics ------------------ None Fabricated ------------ Nothing Alien Tech Used ----------------- None Achievements -------------- Backstab Everything Is Under Control Quick And Dirty Challenges ------------ None Game ------ Seed FlakLongswordCutter Manual? 0 Play Time 00:23:35 Cumulative 1.5 hours Start 2024.04.01 @ 16:32:01 End 2024.04.01 @ 16:56:42 Sessions 1 Manual Loads 0 Difficulty Rogue Special Mode None Game No. 5 Rogue 5 Adventurer 0 Explorer 0 Win Type - Total 0 Types 0/0/0/0/0/0/0/0/0 Lore% 1 Gallery% 4 Achievement% 5 Wizard Run 0 Options --------- Layout 2 ASCII 0 Keyboard 0 Movement Arrows Keybinds 0 Fullscreen 1 Font 24/Smallcaps Map View 50x44 Zoom Use 0% Tactical HUD 1 Map Filters NONE Filters NONE Steam 1 RUN: 4a843bc6-cea6-4ff9-a740-6cd4abddc057